bitfinex/quotes_BTCUSD_20250423
["timestamp","ask_amount","ask_price","bid_price","bid_amount"]
[1745442955712,0.00313851,93821.0,93819.0,0.001]
[1745442955918,0.00113851,93821.0,93819.0,0.001]
[1745442956113,0.00113851,93821.0,93820.0,0.34]
[1745442956337,0.00213851,93821.0,93820.0,0.34]
[1745442956704,0.00113851,93821.0,93820.0,0.34]
[1745442956911,0.00213851,93821.0,93820.0,0.34]
[1745442957111,0.00113851,93821.0,93820.0,0.34]
[1745442957304,0.00213851,93821.0,93820.0,0.34]
[1745442957551,0.00213851,93821.0,93820.0,0.46143099]
[1745442958109,0.00313851,93821.0,93820.0,0.46143099]
[1745442961639,0.00313851,93821.0,93820.0,0.55235099]
[1745442961838,0.00313851,93821.0,93820.0,0.53781014]
[1745442962053,0.00313851,93821.0,93820.0,0.09092]
[1745442962477,0.04993851,93821.0,93819.0,0.001]
[1745442963115,0.0453,93820.0,93819.0,0.001]
[1745442964173,0.0921,93820.0,93819.0,0.001]
[1745442965230,0.09509501,93820.0,93819.0,0.001]
[1745442965402,0.0951,93820.0,93819.0,0.001]
[1745442965601,0.0961,93820.0,93819.0,0.001]
[1745442965807,0.0921,93820.0,93819.0,0.001]
[1745442966006,0.0951,93820.0,93819.0,0.001]
[1745442966973,0.0981,93820.0,93819.0,0.001]
[1745442983667,0.006,93820.0,93819.0,0.55417643]
[1745442984231,0.00013851,93821.0,93819.0,0.55417643]
[1745442984452,0.00013851,93821.0,93820.0,0.34]
[1745442985676,0.002,93820.0,93819.0,0.21417643]
[1745442986089,0.003,93820.0,93819.0,0.21417643]
[1745442986497,0.00213851,93821.0,93819.0,0.21417643]
[1745442986678,0.00513851,93821.0,93820.0,0.00298413]
[1745442986883,0.00013851,93821.0,93819.0,0.21417643]
[1745442987091,0.00013851,93821.0,93820.0,0.00298413]
[1745442987753,0.00313851,93821.0,93820.0,0.00298413]
[1745442987948,0.00313851,93821.0,93819.0,0.21417643]
[1745442988842,0.00513851,93821.0,93819.0,0.21417643]
[1745442989255,0.00213851,93821.0,93820.0,0.12441513]
[1745442989458,0.00013851,93821.0,93820.0,0.12441513]
[1745442989686,0.00213851,93821.0,93820.0,0.12441513]
[1745442990096,0.00313851,93821.0,93820.0,0.12441513]
[1745442990342,0.00313851,93821.0,93820.0,0.12143099]
[1745442990526,0.00013851,93821.0,93820.0,0.12243099]
[1745442992157,0.00013851,93821.0,93820.0,0.1254149]
[1745442994013,0.00013851,93821.0,93820.0,0.46243099]
[1745442998569,0.00115286,93829.0,93823.0,0.01065836]
[1745442998793,0.001199,93829.0,93828.0,0.55315598]
[1745443000429,0.002199,93829.0,93828.0,0.55315598]
[1745443000993,0.003199,93829.0,93828.0,0.34]
[1745443001268,0.051999,93829.0,93828.0,0.34]
[1745443001472,0.051999,93829.0,93810.0,0.24120381]
[1745443001473,0.0488,93827.0,93810.0,0.24120381]
[1745443001683,0.05179501,93826.0,93810.0,0.24120381]
[1745443001880,0.05179501,93826.0,93811.0,0.34]
[1745443002312,0.05179501,93826.0,93810.0,0.24120381]
[1745443002747,0.05179501,93826.0,93811.0,0.34]
[1745443003454,0.0488,93824.0,93811.0,0.34]
[1745443003833,0.0488,93824.0,93811.0,0.341]
[1745443005061,0.0488,93824.0,93811.0,0.34]
[1745443005062,0.05945825,93824.0,93811.0,0.34]
[1745443005203,0.05945825,93824.0,93811.0,0.341]
[1745443005400,0.01065836,93823.0,93811.0,0.341]
[1745443005639,0.0473,93820.0,93811.0,0.341]
[1745443006060,0.0473,93820.0,93811.0,0.34]
[1745443006272,0.0473,93820.0,93811.0,0.341]
[1745443006678,0.0473,93820.0,93811.0,0.34]
[1745443007308,0.0483,93820.0,93811.0,0.34]
[1745443007796,0.0589587,93820.0,93811.0,0.34]
[1745443008091,0.0471,93816.0,93805.0,0.09088]
[1745443008242,0.0471,93816.0,93807.0,0.34]
[1745443009498,0.0481,93816.0,93807.0,0.34]
[1745443018356,0.00299501,93815.0,93807.0,0.34]
[1745443018560,0.0481,93816.0,93807.0,0.34]
[1745443018789,0.0481,93816.0,93801.0,0.34]
[1745443019234,0.00299501,93815.0,93801.0,0.34]
[1745443019424,0.0453,93814.0,93801.0,0.34]
[1745443019756,0.0453,93812.0,93801.0,0.34]
[1745443019966,0.00299501,93811.0,93801.0,0.34]
[1745443020849,0.0453,93812.0,93801.0,0.34]
[1745443020957,0.0453,93812.0,93801.0,0.341]
[1745443021625,0.0453,93812.0,93801.0,0.34]
[1745443022033,0.001,93811.0,93801.0,0.34]
[1745443022919,0.0463,93812.0,93801.0,0.34]
[1745443023324,0.001,93811.0,93801.0,0.34]
[1745443024762,0.0453,93812.0,93801.0,0.34]
[1745443025163,0.0463,93812.0,93801.0,0.34]
[1745443025375,0.0453,93812.0,93801.0,0.34]
[1745443025810,0.001,93811.0,93801.0,0.34]
[1745443026030,0.0453,93812.0,93801.0,0.34]
[1745443026205,0.0463,93812.0,93799.0,0.09088]
[1745443026413,0.0463,93812.0,93801.0,0.34]
[1745443026635,0.0453,93812.0,93801.0,0.34]
[1745443026839,0.001,93811.0,93801.0,0.34]
[1745443027681,0.001,93811.0,93801.0,0.55321526]
[1745443028043,0.001,93811.0,93803.0,0.21321239]
[1745443028458,0.001,93811.0,93801.0,0.55321526]
[1745443028664,0.0453,93812.0,93801.0,0.55321526]
[1745443028880,0.0453,93819.0,93807.0,0.21320309]
[1745443029106,0.0453,93819.0,93810.0,0.34]
[1745443029475,0.001,93811.0,93810.0,0.34]
[1745443029691,0.0453,93819.0,93810.0,0.34]
[1745443029926,0.0453,93819.0,93810.0,0.21319615]
[1745443030062,0.0463,93819.0,93810.0,0.21319615]
[1745443030264,0.0453,93819.0,93810.0,0.21319615]
[1745443030644,0.0453,93819.0,93808.0,0.21319981]
[1745443030856,0.0453,93819.0,93806.0,0.21320466]
[1745443031582,0.0453,93819.0,93803.0,0.21321188]
[1745443031783,0.0453,93819.0,93804.0,0.21321052]
[1745443031983,0.0453,93819.0,93809.0,0.24120381]
[1745443038541,0.0453,93821.0,93809.0,0.24120381]
[1745443043668,0.0453,93821.0,93809.0,0.4544012]
[1745443044932,0.0453,93821.0,93810.0,0.21319537]
[1745443045989,0.0453,93821.0,93809.0,0.24120381]
[1745443047470,0.0453,93821.0,93809.0,0.33204381]
[1745443048635,0.0453,93821.0,93819.0,0.21317456]
[1745443048859,0.046,93828.0,93819.0,0.21317456]
[1745443049080,0.046,93828.0,93818.0,0.48240762]
[1745443049300,0.046,93828.0,93818.0,0.24120381]
[1745443049527,0.046,93828.0,93818.0,0.45438043]
[1745443049762,0.002,93821.0,93820.0,0.2131728]
[1745443050126,0.048,93828.0,93820.0,0.2131728]
[1745443050342,0.046,93828.0,93820.0,0.2131728]
[1745443050548,0.048,93828.0,93820.0,0.21317378]
[1745443050752,0.048,93828.0,93818.0,0.45438043]
[1745443050929,0.046,93828.0,93818.0,0.48240762]
[1745443051369,0.046,93828.0,93818.0,0.24120381]
[1745443051770,0.047,93828.0,93818.0,0.24120381]
[1745443052188,0.048,93828.0,93818.0,0.24120381]
[1745443052643,0.047,93828.0,93818.0,0.24120381]
[1745443053063,0.048,93828.0,93818.0,0.24120381]
[1745443055185,0.0466,93827.0,93818.0,0.24120381]
[1745443056108,0.0466,93827.0,93814.0,0.09084]
[1745443056323,0.0486,93827.0,93814.0,0.09084]
[1745443056933,0.0466,93827.0,93814.0,0.09084]
[1745443057898,0.00299501,93826.0,93814.0,0.09084]
[1745443058260,0.0466,93827.0,93814.0,0.09084]
[1745443058607,0.0466,93825.0,93810.0,0.33204381]
[1745443059535,0.0466,93825.0,93810.0,0.24120381]
[1745443059711,0.0466,93825.0,93810.0,0.33204381]
[1745443060167,0.0466,93825.0,93810.0,0.33304381]
[1745443060801,0.0466,93825.0,93810.0,0.24220381]
[1745443061009,0.0466,93825.0,93811.0,0.09084]
[1745443061456,0.0466,93825.0,93810.0,0.24220381]
[1745443061457,0.01065825,93824.0,93810.0,0.24220381]
[1745443061676,0.01065825,93824.0,93811.0,0.09084]
[1745443062279,0.05725814,93825.0,93811.0,0.09084]
[1745443062514,0.05725814,93825.0,93811.0,0.09184]
[1745443062864,0.05725814,93825.0,93811.0,0.09084]
[1745443063741,0.05725814,93825.0,93811.0,0.09184]
[1745443063967,0.0466,93825.0,93811.0,0.09184]
[1745443065274,0.36665493,93825.0,93811.0,0.09084]
[1745443065487,0.15349014,93825.0,93811.0,0.09184]
[1745443067190,0.16414828,93825.0,93811.0,0.09184]
[1745443068104,0.15349014,93825.0,93811.0,0.09184]
[1745443068319,0.15349014,93825.0,93810.0,0.13539963]
[1745443069527,0.15349014,93825.0,93810.0,0.13639963]
[1745443071699,0.15349014,93825.0,93811.0,0.34]
[1745443078323,0.0466,93825.0,93811.0,0.34]
[1745443085301,0.0466,93825.0,93812.0,0.01994713]
[1745443085706,0.0466,93825.0,93813.0,0.01994713]
[1745443086326,0.0466,93825.0,93814.0,0.01994713]
[1745443086583,0.0466,93825.0,93815.0,0.01994713]
[1745443086988,0.0466,93825.0,93811.0,0.34]
[1745443087880,0.0476,93825.0,93815.0,0.24120381]
[1745443088099,0.0466,93825.0,93816.0,0.21318325]
[1745443088282,0.0466,93825.0,93820.0,0.21317381]
[1745443088480,0.046,93828.0,93821.0,0.34]
[1745443089591,0.046,93828.0,93818.0,0.34]
[1745443090048,0.001,93825.0,93818.0,0.34]
[1745443090269,0.046,93828.0,93818.0,0.34]
[1745443090482,0.002,93825.0,93818.0,0.34]
[1745443090950,0.046,93828.0,93818.0,0.34]
[1745443091168,0.001,93825.0,93816.0,0.34]
[1745443091761,0.046,93828.0,93816.0,0.34]
[1745443092169,0.047,93828.0,93816.0,0.34]
[1745443093365,0.001,93825.0,93816.0,0.34]
[1745443093768,0.046,93828.0,93816.0,0.34]
[1745443094243,0.047,93828.0,93816.0,0.34]
[1745443094675,0.002,93825.0,93816.0,0.34]
[1745443095086,0.046,93828.0,93816.0,0.34]
[1745443095315,0.047,93828.0,93816.0,0.34]
[1745443095517,0.048,93828.0,93816.0,0.34]
[1745443095732,0.045,93827.0,93815.0,0.0908]
[1745443096819,0.001,93825.0,93815.0,0.0908]
[1745443096986,0.045,93827.0,93815.0,0.0908]
[1745443097197,0.046,93827.0,93815.0,0.0908]
[1745443097527,0.047,93827.0,93815.0,0.0908]
[1745443097670,0.045,93827.0,93815.0,0.0908]
[1745443097871,0.002,93825.0,93815.0,0.0908]
[1745443098285,0.001,93825.0,93815.0,0.0908]
[1745443098495,0.046,93827.0,93815.0,0.0908]
[1745443098698,0.047,93827.0,93815.0,0.0908]
[1745443099757,0.046,93827.0,93815.0,0.0908]
[1745443099971,0.001,93825.0,93815.0,0.0908]
[1745443100176,0.046,93827.0,93815.0,0.0908]
[1745443100784,0.001,93825.0,93815.0,0.0908]
[1745443102396,0.002,93825.0,93815.0,0.0908]
[1745443102935,0.001,93825.0,93815.0,0.0908]
[1745443103144,0.002,93825.0,93815.0,0.0908]
[1745443103604,0.002,93825.0,93803.0,0.21321083]
[1745443103605,0.045,93824.0,93812.0,0.09076]
[1745443112135,0.045,93824.0,93810.0,0.24120381]
[1745443113440,0.045,93824.0,93810.0,0.24220381]
[1745443125952,0.01065938,93814.0,93810.0,0.001]
[1745443126167,0.0482,93816.0,93810.0,0.001]
[1745443126575,0.0482,93816.0,93802.0,0.09076]
[1745443126779,0.0482,93816.0,93807.0,0.34]
[1745443127407,0.0502,93816.0,93807.0,0.34]
[1745443127684,0.0482,93816.0,93807.0,0.34]
[1745443128137,0.0502,93816.0,93807.0,0.34]
[1745443128751,0.0512,93816.0,93807.0,0.34]
[1745443129161,0.0502,93816.0,93807.0,0.34]
[1745443129459,0.0522,93816.0,93807.0,0.34]
[1745443135165,0.0522,93816.0,93802.0,0.43076]
[1745443135369,0.0522,93816.0,93802.0,0.34]
[1745443135563,0.0522,93816.0,93802.0,0.43072]
[1745443135930,0.0502,93816.0,93802.0,0.43072]
[1745443136337,0.0492,93816.0,93802.0,0.43072]
[1745443136739,0.0502,93816.0,93802.0,0.43072]
[1745443138300,0.0502,93816.0,93804.0,0.34]
[1745443139314,0.0492,93816.0,93802.0,0.43072]
[1745443139714,0.0502,93816.0,93802.0,0.43072]
[1745443140145,0.0492,93816.0,93802.0,0.43072]
[1745443140361,0.0492,93816.0,93802.0,0.09072]
[1745443140875,0.0502,93816.0,93802.0,0.09072]
[1745443145174,0.0502,93816.0,93804.0,0.34]
[1745443146035,0.0492,93816.0,93804.0,0.34]
[1745443146265,0.0482,93816.0,93804.0,0.34]
[1745443146472,0.0492,93816.0,93804.0,0.34]
[1745443146921,0.0502,93816.0,93804.0,0.34]
[1745443147094,0.0502,93816.0,93804.0,0.55320868]
[1745443147444,0.0502,93816.0,93804.0,0.34]
[1745443149037,0.0502,93816.0,93804.0,0.55320859]
[1745443149871,0.0502,93816.0,93804.0,0.34]
[1745443151151,0.0502,93816.0,93802.0,0.09072]
[1745443152171,0.0482,93816.0,93802.0,0.09072]
[1745443152400,0.0492,93816.0,93802.0,0.09072]
[1745443152598,0.0502,93816.0,93802.0,0.09072]
[1745443153105,0.0502,93816.0,93803.0,0.34]
[1745443153322,0.0502,93816.0,93803.0,0.43072]
[1745443153758,0.0492,93816.0,93803.0,0.43072]
[1745443154299,0.0502,93816.0,93803.0,0.09072]
[1745443154405,0.0492,93816.0,93803.0,0.09072]
[1745443154837,0.0502,93816.0,93803.0,0.09072]
[1745443155292,0.0482,93816.0,93803.0,0.09072]
[1745443155694,0.0502,93816.0,93802.0,0.09072]
[1745443156520,0.0492,93816.0,93802.0,0.09072]
[1745443156957,0.0482,93816.0,93802.0,0.09072]
[1745443157240,0.0492,93816.0,93802.0,0.09072]
[1745443158445,0.0502,93816.0,93802.0,0.09072]
[1745443159221,0.0466,93815.0,93778.0,0.0008502]
[1745443159426,0.21322188,93799.0,93780.0,0.33192381]
[1745443159631,0.04909501,93798.0,93780.0,0.33192381]
[1745443160066,0.04909501,93798.0,93781.0,0.34]
[1745443160511,0.04909501,93798.0,93780.0,0.33192381]
[1745443160688,0.04909501,93798.0,93780.0,0.24120381]
[1745443160898,0.04914113,93798.0,93781.0,0.43068]
[1745443161579,0.05726132,93797.0,93780.0,0.24120381]
[1745443161780,0.0461,93796.0,93780.0,0.24120381]
[1745443161989,0.15299014,93795.0,93781.0,0.34]
[1745443162160,0.15299014,93795.0,93781.0,0.342]
[1745443162651,0.0461,93794.0,93781.0,0.342]
[1745443162858,0.0461,93794.0,93781.0,0.34]
[1745443163438,0.0461,93794.0,93781.0,0.341]
[1745443164813,0.0461,93794.0,93781.0,0.342]
[1745443166463,0.01066234,93788.0,93781.0,0.342]
[1745443166691,0.05676257,93786.0,93781.0,0.002]
[1745443166921,0.00299501,93785.0,93781.0,0.002]
[1745443167143,0.0461,93784.0,93781.0,0.002]
[1745443167380,0.0927,93782.0,93781.0,0.001]
[1745443167642,0.10336302,93782.0,93779.0,0.0008502]
[1745443167906,0.0466,93782.0,93781.0,0.001]
[1745443168144,0.15349014,93782.0,93781.0,0.002]
[1745443168338,0.0461,93781.0,93779.0,0.0008502]
[1745443168541,0.15299014,93780.0,93779.0,0.0008502]
[1745443169184,0.20229014,93780.0,93779.0,0.0008502]
[1745443169798,0.20528515,93780.0,93779.0,0.0008502]
[1745443170177,0.20229014,93780.0,93779.0,0.0008502]
[1745443171157,0.20529014,93780.0,93779.0,0.0008502]
[1745443171629,0.20929014,93780.0,93779.0,0.0008502]
[1745443171835,0.21329014,93780.0,93779.0,0.0008502]
[1745443178879,0.42955023,93780.0,93779.0,0.0008502]
[1745443179100,0.42655522,93780.0,93779.0,0.0008502]
[1745443179952,0.42255522,93780.0,93779.0,0.0008502]
[1745443180141,0.42355522,93780.0,93779.0,0.0008502]
[1745443180368,0.42755522,93780.0,93779.0,0.0008502]
[1745443180688,0.42355522,93780.0,93779.0,0.0008502]
[1745443181109,0.41655522,93780.0,93779.0,0.0008502]
[1745443181553,0.42155522,93780.0,93779.0,0.0008502]
[1745443181758,0.42555522,93780.0,93779.0,0.0008502]
[1745443182219,0.42455522,93780.0,93779.0,0.0008502]
[1745443182390,0.42055522,93780.0,93779.0,0.0008502]
[1745443182555,0.42355522,93780.0,93779.0,0.0008502]
[1745443182970,0.41855522,93780.0,93779.0,0.0008502]
[1745443183214,0.42355522,93780.0,93779.0,0.0008502]
[1745443197071,0.43101548,93780.0,93779.0,0.0008502]
[1745443202448,0.01066439,93770.0,93751.0,0.34]
[1745443203665,0.01066439,93770.0,93751.0,0.344]
[1745443205249,0.01066427,93771.0,93751.0,0.344]
[1745443205456,0.11755441,93771.0,93751.0,0.344]
[1745443206388,0.11755441,93771.0,93751.0,0.342]
[1745443206587,0.11755441,93771.0,93751.0,0.344]
[1745443206791,0.11755441,93771.0,93751.0,0.342]
[1745443206989,0.11755441,93771.0,93751.0,0.344]
[1745443207686,0.01066439,93770.0,93751.0,0.004]
[1745443208275,0.11755441,93771.0,93751.0,0.004]
[1745443208703,0.11755441,93771.0,93751.0,0.002]
[1745443208875,0.11755441,93771.0,93751.0,0.004]
[1745443209486,0.11755441,93771.0,93751.0,0.002]
[1745443209686,0.01066439,93770.0,93751.0,0.002]
[1745443209989,0.01066439,93770.0,93751.0,0.004]
[1745443210188,0.01066439,93770.0,93751.0,0.002]
[1745443210779,0.01066439,93770.0,93751.0,0.004]
[1745443210977,0.01066439,93770.0,93751.0,0.002]
[1745443211189,0.01066439,93770.0,93751.0,0.004]
[1745443211397,0.11755441,93771.0,93751.0,0.002]
[1745443211606,0.11755441,93771.0,93751.0,0.004]
[1745443212221,0.11755441,93771.0,93751.0,0.002]
[1745443212361,0.05766439,93770.0,93751.0,0.002]
[1745443212941,0.05766439,93770.0,93751.0,0.004]
[1745443213327,0.05766439,93770.0,93751.0,0.002]
[1745443213767,0.05766439,93770.0,93750.0,0.09068]
[1745443214166,0.05766439,93770.0,93751.0,0.002]
[1745443215200,0.05766439,93770.0,93751.0,0.004]
[1745443216346,0.05766439,93770.0,93751.0,0.002]
[1745443216751,0.01066461,93768.0,93751.0,0.002]
[1745443217157,0.27095236,93770.0,93751.0,0.004]
[1745443217158,0.0106645,93769.0,93751.0,0.004]
[1745443217512,0.06016461,93768.0,93751.0,0.004]
[1745443217963,0.06016461,93768.0,93751.0,0.00246237]
[1745443218348,0.0495,93768.0,93751.0,0.00246237]
[1745443218527,0.0495,93768.0,93751.0,0.00446237]
[1745443218838,0.0495,93768.0,93751.0,0.00246237]
[1745443219202,0.0495,93768.0,93751.0,0.00446237]
[1745443219579,0.0495,93768.0,93751.0,0.00246237]
[1745443219869,0.0495,93768.0,93751.0,0.00146237]
[1745443220238,0.0495,93768.0,93751.0,0.00346237]
[1745443220447,0.01066484,93766.0,93751.0,0.00146237]
[1745443220649,0.05706473,93767.0,93751.0,0.00146237]
[1745443220909,0.01066564,93759.0,93751.0,0.00246237]
[1745443221089,0.00299501,93760.0,93751.0,0.00246237]
[1745443221226,0.00299501,93761.0,93751.0,0.00146237]
[1745443221422,0.00299501,93761.0,93751.0,0.00246237]
[1745443221625,0.00299501,93764.0,93751.0,0.00246237]
[1745443221891,0.00299501,93764.0,93751.0,0.00146237]
[1745443222355,0.00299501,93764.0,93751.0,0.00046237]
[1745443222707,0.00299501,93765.0,93751.0,0.00246237]
[1745443222911,0.00299501,93765.0,93751.0,0.00146237]
[1745443223542,0.00299501,93765.0,93751.0,0.00046237]
[1745443223750,0.01365997,93765.0,93751.0,0.00146237]
[1745443223932,0.01066507,93764.0,93751.0,0.00146237]
[1745443224124,0.00299501,93763.0,93751.0,0.00146237]
[1745443224451,0.00299501,93763.0,93751.0,0.00246237]
[1745443224983,0.00299501,93763.0,93751.0,0.00146237]
[1745443225182,0.01066496,93765.0,93751.0,0.00146237]
[1745443225183,0.01366008,93764.0,93751.0,0.00146237]
[1745443225332,0.00299501,93764.0,93751.0,0.00046237]
[1745443225532,0.01365985,93766.0,93751.0,0.00146237]
[1745443225744,0.01365985,93766.0,93751.0,0.00246237]
[1745443226152,0.01365985,93766.0,93751.0,0.00146237]
[1745443226720,0.01365985,93766.0,93751.0,0.00246237]
[1745443227462,0.01365985,93766.0,93751.0,0.00146237]
[1745443227661,0.01365985,93766.0,93746.0,0.09064]
[1745443227863,0.01412117,93766.0,93751.0,0.001]
[1745443228631,0.01066496,93765.0,93746.0,0.09064]
[1745443228835,0.00299501,93764.0,93746.0,0.09364]
[1745443229073,0.00299501,93764.0,93746.0,0.09564]
[1745443229276,0.00299501,93764.0,93746.0,0.09264]
[1745443229509,0.00299501,93764.0,93751.0,0.001]
[1745443230869,0.00299501,93764.0,93746.0,0.09264]
[1745443231080,0.00299501,93764.0,93746.0,0.09564]
[1745443231390,0.00299501,93764.0,93746.0,0.09364]
[1745443231590,0.00299501,93764.0,93746.0,0.09064]
[1745443231939,0.00299501,93764.0,93751.0,0.001]
[1745443232144,0.01366008,93764.0,93751.0,0.001]
[1745443232356,0.00299501,93764.0,93746.0,0.09264]
[1745443232565,0.00299501,93764.0,93746.0,0.09564]
[1745443232910,0.01066496,93765.0,93746.0,0.09564]
[1745443233121,0.01366008,93764.0,93746.0,0.09364]
[1745443233304,0.00299501,93764.0,93751.0,0.001]
[1745443234122,0.01066496,93765.0,93751.0,0.001]
[1745443234323,0.01066496,93765.0,93751.0,0.002]
[1745443234525,0.00299501,93764.0,93751.0,0.002]
[1745443234872,0.00299501,93764.0,93751.0,0.001]
[1745443235374,0.00299501,93764.0,93751.0,0.002]
[1745443235569,0.00299501,93764.0,93751.0,0.001]
[1745443235792,0.01366008,93764.0,93746.0,0.09064]
[1745443235985,0.01066496,93765.0,93746.0,0.09264]
[1745443236157,0.01066496,93765.0,93746.0,0.09064]
[1745443236560,0.01066496,93765.0,93751.0,0.001]
[1745443236763,0.01066496,93765.0,93746.0,0.09064]
[1745443236988,0.01066496,93765.0,93746.0,0.09264]
[1745443237190,0.00299501,93764.0,93746.0,0.09264]
[1745443237604,0.00299501,93764.0,93751.0,0.001]
[1745443238134,0.01112616,93766.0,93746.0,0.09264]
[1745443238313,0.01112616,93766.0,93746.0,0.09564]
[1745443238643,0.01066496,93765.0,93746.0,0.09364]
[1745443238782,0.01066496,93765.0,93746.0,0.09064]
[1745443238996,0.01066496,93765.0,93746.0,0.09264]
[1745443239234,0.00299501,93764.0,93751.0,0.001]
[1745443239796,0.01066496,93765.0,93751.0,0.001]
[1745443239998,0.00299501,93764.0,93751.0,0.001]
[1745443240576,0.01066496,93765.0,93746.0,0.09064]
[1745443240689,0.22396527,93765.0,93751.0,0.001]
[1745443240888,0.01066496,93765.0,93751.0,0.001]
[1745443241568,0.01066496,93765.0,93751.0,0.002]
[1745443241972,0.01365997,93765.0,93751.0,0.001]
[1745443242314,0.01365997,93765.0,93751.0,0.002]
[1745443242506,0.01066496,93765.0,93751.0,0.001]
[1745443242706,0.01066496,93765.0,93751.0,0.002]
[1745443244754,0.01112616,93766.0,93751.0,0.002]
[1745443245930,0.01365997,93765.0,93751.0,0.002]
[1745443246344,0.01066496,93765.0,93751.0,0.001]
[1745443246891,0.01112616,93766.0,93751.0,0.001]
[1745443247090,0.01112616,93766.0,93751.0,0.002]
[1745443247315,0.01112616,93766.0,93751.0,0.001]
[1745443247727,0.01112616,93766.0,93751.0,0.002]
[1745443248172,0.01365997,93765.0,93751.0,0.001]
[1745443249122,0.01365997,93765.0,93751.0,0.002]
[1745443249339,0.01066496,93765.0,93751.0,0.001]
[1745443249737,0.01066496,93765.0,93751.0,0.002]
[1745443250159,0.01066496,93765.0,93751.0,0.001]
[1745443250315,0.01112616,93766.0,93751.0,0.001]
[1745443250518,0.01112616,93766.0,93751.0,0.002]
[1745443251074,0.01112616,93766.0,93751.0,0.001]
[1745443251428,0.01112616,93766.0,93751.0,0.002]
[1745443252073,0.01112616,93766.0,93751.0,0.001]
[1745443252360,0.01112616,93766.0,93751.0,0.002]
[1745443254257,0.00046132,93766.0,93751.0,0.002]
[1745443254569,0.01112616,93766.0,93751.0,0.002]
[1745443255931,0.00046132,93766.0,93751.0,0.002]
[1745443256702,0.01112616,93766.0,93751.0,0.002]
[1745443259872,0.01066496,93765.0,93751.0,0.002]
[1745443260478,0.01112616,93766.0,93751.0,0.002]
[1745443260682,0.01112616,93766.0,93751.0,0.001]
[1745443261086,0.01112616,93766.0,93751.0,0.002]
[1745443261294,0.01066496,93765.0,93751.0,0.002]
[1745443261488,0.01112616,93766.0,93751.0,0.001]
[1745443261938,0.01112616,93766.0,93751.0,0.002]
[1745443262142,0.00046132,93766.0,93751.0,0.002]
[1745443262562,0.00046132,93766.0,93751.0,0.001]
[1745443263268,0.00046132,93766.0,93751.0,0.002]
[1745443264582,0.01066496,93765.0,93751.0,0.002]
[1745443264804,0.00046132,93766.0,93751.0,0.002]
[1745443265014,0.01066496,93765.0,93751.0,0.002]
[1745443265241,0.01112616,93766.0,93751.0,0.002]
[1745443266470,0.01066496,93765.0,93751.0,0.001]
[1745443266757,0.01066496,93765.0,93751.0,0.002]
[1745443267189,0.01066496,93765.0,93751.0,0.001]
[1745443267411,0.01066496,93765.0,93751.0,0.002]
[1745443268196,0.01066496,93765.0,93751.0,0.001]
[1745443268401,0.01066496,93765.0,93748.0,0.09064]
[1745443268742,0.01066496,93765.0,93751.0,0.001]
[1745443269333,0.01066496,93765.0,93748.0,0.09064]
[1745443269538,0.01112616,93766.0,93748.0,0.09064]
[1745443269676,0.01066496,93765.0,93751.0,0.001]
[1745443270076,0.01066496,93765.0,93748.0,0.09064]
[1745443270535,0.01066496,93765.0,93748.0,0.09264]
[1745443271197,0.01066507,93764.0,93751.0,0.001]
[1745443271436,0.01066496,93765.0,93748.0,0.09264]
[1745443271879,0.01066496,93765.0,93748.0,0.09464]
[1745443272028,0.01066496,93765.0,93748.0,0.09264]
[1745443272405,0.01066496,93765.0,93751.0,0.001]
[1745443272577,0.01066496,93765.0,93748.0,0.09264]
[1745443272774,0.01066496,93765.0,93748.0,0.09064]
[1745443273085,0.01066496,93765.0,93751.0,0.001]
[1745443273491,0.01066496,93765.0,93748.0,0.09064]
[1745443273852,0.01066496,93765.0,93748.0,0.09264]
[1745443274537,0.01066496,93765.0,93751.0,0.001]
[1745443275493,0.01066496,93765.0,93748.0,0.09464]
[1745443275871,0.01066496,93765.0,93751.0,0.001]
[1745443276073,0.01066496,93765.0,93751.0,0.002]
[1745443276525,0.01066496,93765.0,93751.0,0.001]
[1745443276739,0.01066496,93765.0,93748.0,0.09064]
[1745443276943,0.01066496,93765.0,93748.0,0.09264]
[1745443277339,0.01066496,93765.0,93748.0,0.09064]
[1745443278350,0.01066496,93765.0,93751.0,0.001]
[1745443280059,0.01066496,93765.0,93744.0,0.09064]
[1745443280377,0.01112616,93766.0,93748.0,0.002]
[1745443280689,0.01066496,93765.0,93744.0,0.30398553]
[1745443280833,0.01066496,93765.0,93751.0,0.001]
[1745443281423,0.01112616,93766.0,93746.0,0.21334209]
[1745443281647,0.00046132,93766.0,93748.0,0.002]
[1745443282048,0.01112616,93766.0,93751.0,0.001]
[1745443282521,0.00046132,93766.0,93748.0,0.002]
[1745443282723,0.01112616,93766.0,93748.0,0.002]
[1745443282907,0.01112616,93766.0,93746.0,0.21334209]
[1745443283287,0.00046132,93766.0,93751.0,0.002]
[1745443283860,0.00046132,93766.0,93751.0,0.001]
[1745443284450,0.00046132,93766.0,93747.0,0.21333861]
[1745443284894,0.00046132,93766.0,93751.0,0.001]
[1745443285503,0.00046132,93766.0,93751.0,0.002]
[1745443286075,0.00046132,93766.0,93751.0,0.001]
[1745443287649,0.00046132,93766.0,93751.0,0.002]
[1745443295222,0.00046132,93766.0,93746.0,0.213341]
[1745443295624,0.0493,93765.0,93746.0,0.213341]
[1745443296418,0.0493,93765.0,93746.0,0.216341]
[1745443296822,0.0493,93765.0,93746.0,0.213341]
[1745443297215,0.0493,93765.0,93746.0,0.216341]
[1745443297463,0.0493,93765.0,93746.0,0.217341]
[1745443297782,0.0493,93765.0,93746.0,0.216341]
[1745443298079,0.0493,93765.0,93746.0,0.217341]
[1745443299191,0.0493,93765.0,93746.0,0.004]